bitfinex-derivatives/quotes_BTCF0:USTF0_20210708
["timestamp","ask_amount","ask_price","bid_price","bid_amount"]
[1625756854721,0.24057544,32775.0,32774.0,0.68727033]
[1625756854871,0.24057544,32775.0,32774.0,0.95237033]
[1625756856073,0.33070249,32775.0,32774.0,1.98518745]
[1625756856298,0.33070249,32775.0,32774.0,2.22576289]
[1625756857123,0.69066928,32775.0,32774.0,2.22576289]
[1625756857798,0.60054223,32775.0,32774.0,1.19294577]
[1625756858025,0.96105255,32775.0,32774.0,2.22719419]
[1625756860952,0.96105255,32775.0,32774.0,3.43353279]
[1625756861250,0.96105255,32775.0,32774.0,2.22719419]
[1625756861401,2.34612506,32775.0,32774.0,2.22719419]
[1625756861626,3.60732745,32775.0,32774.0,0.85075163]
[1625756861775,3.60732745,32775.0,32774.0,0.58565163]
[1625756862152,5.04943134,32775.0,32774.0,0.58565163]
[1625756862453,5.04943134,32775.0,32774.0,0.24057544]
[1625756862829,5.04943134,32775.0,32774.0,0.58585137]
[1625756863130,3.60732745,32775.0,32774.0,0.93086739]
[1625756863582,3.60732745,32775.0,32774.0,1.96613656]
[1625756864184,4.14825854,32775.0,32774.0,2.48376475]
[1625756864487,2.88705615,32775.0,32774.0,2.48376475]
[1625756865611,2.88705615,32775.0,32774.0,3.69085508]
[1625756870343,2.88705615,32775.0,32774.0,2.48376475]
[1625756874931,2.88705615,32775.0,32774.0,1.44849558]
[1625756874932,4.14889757,32775.0,32774.0,1.44849558]
[1625756875078,5.59100774,32775.0,32774.0,1.44849558]
[1625756875227,5.59100774,32775.0,32774.0,0.75820363]
[1625756875376,5.59100774,32775.0,32774.0,1.10338067]
[1625756876276,5.59100774,32775.0,32774.0,0.58575248]
[1625756876427,5.83158318,32775.0,32774.0,0.58575248]
[1625756876728,4.38947301,32775.0,32774.0,1.44872625]
[1625756876877,4.38947301,32775.0,32774.0,1.66600625]
[1625756877027,4.38947301,32775.0,32774.0,2.70161402]
[1625756877564,3.12763159,32775.0,32774.0,2.70161402]
[1625756878380,2.88705615,32775.0,32774.0,2.70161402]
[1625756878983,4.14891151,32775.0,32774.0,2.70161402]
[1625756879280,2.88705615,32775.0,32774.0,2.70161402]
[1625756881386,4.14892016,32775.0,32774.0,2.70161402]
[1625756881686,2.88705615,32775.0,32774.0,2.70161402]
[1625756881987,4.14893791,32775.0,32774.0,2.70161402]
[1625756883130,3.60426247,32775.0,32774.0,2.70161402]
[1625756883630,0.09029331,32776.0,32774.0,5.28115037]
[1625756883890,0.09028923,32778.0,32774.0,6.82768419]
[1625756884046,0.45531306,32780.0,32775.0,6.35259216]
[1625756884204,0.45531306,32780.0,32776.0,0.0923]
[1625756884316,0.0046,32780.0,32779.0,4.80578228]
[1625756884549,0.0046,32780.0,32779.0,5.28693316]
[1625756884670,0.45067746,32782.0,32779.0,5.28693316]
[1625756884801,0.09483936,32783.0,32782.0,3.8661]
[1625756884920,0.09483936,32783.0,32782.0,4.16428]
[1625756885108,0.0046,32783.0,32782.0,8.96393167]
[1625756885221,0.36038554,32786.0,32782.0,8.96393167]
[1625756885387,0.52293763,32788.0,32783.0,0.5]
[1625756885530,1.26089001,32791.0,32785.0,2.57006618]
[1625756885869,1.26089001,32791.0,32787.0,1.19960955]
[1625756886127,1.53156474,32792.0,32784.0,1.19939601]
[1625756886128,1.25990258,32790.0,32784.0,1.19939601]
[1625756886419,1.25990258,32790.0,32789.0,0.48115088]
[1625756887168,1.25990258,32790.0,32789.0,0.57235088]
[1625756887319,1.2598341,32791.0,32789.0,0.57235088]
[1625756887619,0.24057544,32795.0,32789.0,0.57235088]
[1625756887620,1.50034621,32795.0,32789.0,1.77005373]
[1625756887938,0.24057544,32795.0,32789.0,0.57235088]
[1625756888087,1.25851824,32797.0,32789.0,1.76830952]
[1625756888370,0.24057544,32798.0,32789.0,1.76830952]
[1625756888371,1.25846107,32799.0,32791.0,1.19529709]
[1625756888538,1.60821555,32800.0,32798.0,0.72172632]
[1625756888672,0.17,32800.0,32798.0,1.00833632]
[1625756889571,0.17,32800.0,32799.0,1.19122227]
[1625756889720,0.17,32800.0,32799.0,1.28172227]
[1625756890022,0.17,32800.0,32799.0,0.0905]
[1625756892273,0.0001,32800.0,32799.0,0.0905]
[1625756893624,0.0001,32800.0,32799.0,4.5658]
[1625756895802,0.0001,32800.0,32799.0,0.0905]
[1625756896104,0.0001,32800.0,32798.0,0.72172632]
[1625756896403,0.0001,32800.0,32798.0,0.24057544]
[1625756896646,0.72172632,32799.0,32796.0,0.0046]
[1625756897002,0.72172632,32799.0,32793.0,0.24057544]
[1625756898505,0.24057544,32794.0,32793.0,0.24057544]
[1625756898686,0.24057544,32794.0,32790.0,0.0046]
[1625756898687,0.51952544,32794.0,32790.0,0.0046]
[1625756898878,0.51952544,32794.0,32779.0,1.1951731]
[1625756899177,0.51952544,32794.0,32776.0,1.19647914]
[1625756899401,0.51952544,32794.0,32773.0,1.36814973]
[1625756899478,0.51952544,32794.0,32781.0,3.7403]
[1625756900530,0.51952544,32794.0,32783.0,0.24057544]
[1625756900531,0.24057544,32784.0,32783.0,0.24057544]
[1625756900981,0.24057544,32790.0,32783.0,0.24057544]
[1625756901280,0.24057544,32790.0,32784.0,0.0906]
[1625756901477,0.24057544,32790.0,32784.0,0.30313]
[1625756902213,0.24057544,32790.0,32784.0,0.21253]
[1625756902483,0.24057544,32790.0,32789.0,0.24057544]
[1625756903715,0.24057544,32790.0,32781.0,5.10394751]
[1625756904013,0.24057544,32790.0,32781.0,3.7403]
[1625756904612,0.24057544,32787.0,32783.0,0.24057544]
[1625756906552,0.24057544,32784.0,32783.0,0.24057544]
[1625756910297,0.24057544,32784.0,32776.0,0.24057544]
[1625756910453,0.24057544,32784.0,32774.0,1.37424792]
[1625756910591,0.48115088,32775.0,32772.0,1.37049655]
[1625756911042,0.48115088,32775.0,32773.0,1.61115776]
[1625756911642,0.48115088,32775.0,32773.0,0.24057544]
[1625756924035,0.48115088,32775.0,32773.0,0.45846544]
[1625756924338,0.48115088,32775.0,32774.0,1.02958862]
[1625756925929,0.48115088,32775.0,32774.0,2.2300519]
[1625756926072,0.48115088,32775.0,32774.0,1.02958862]
[1625756926511,0.48115088,32775.0,32774.0,2.23007808]
[1625756927413,0.48115088,32775.0,32774.0,3.61459334]
[1625756927713,0.48115088,32775.0,32774.0,2.23007808]
[1625756927864,0.48115088,32775.0,32774.0,3.61897415]
[1625756928689,0.24057544,32775.0,32774.0,3.61897415]
[1625756929291,0.24057544,32775.0,32774.0,2.23007808]
[1625756930264,0.24057544,32775.0,32774.0,1.02958862]
[1625756931315,0.45707544,32775.0,32774.0,1.02958862]
[1625756932216,1.07907544,32788.0,32774.0,1.02958862]
[1625756932366,0.23285,32784.0,32774.0,1.02958862]
[1625756932518,0.23285,32784.0,32775.0,0.0913]
[1625756932666,0.23285,32784.0,32783.0,0.48115088]
[1625756933718,0.24057544,32785.0,32783.0,0.48115088]
[1625756934167,0.24057544,32788.0,32783.0,0.48115088]
[1625756934767,0.24057544,32788.0,32787.0,0.24057544]
[1625756937096,0.24057544,32788.0,32783.0,0.48115088]
[1625756937250,1.89481987,32788.0,32783.0,0.48115088]
[1625756937925,1.43356142,32787.0,32783.0,0.48115088]
[1625756938076,1.43816142,32787.0,32783.0,0.48115088]
[1625756938677,0.24057544,32784.0,32783.0,0.24057544]
[1625756940028,0.24057544,32784.0,32777.0,0.24057544]
[1625756940180,4.7345,32780.0,32777.0,0.24057544]
[1625756940329,5.01772,32780.0,32777.0,0.24057544]
[1625756940782,0.24057544,32778.0,32777.0,0.24057544]
[1625756941981,0.24517544,32778.0,32777.0,0.24057544]
[1625756944309,0.52282544,32778.0,32777.0,0.24057544]
[1625756947087,0.24517544,32778.0,32777.0,0.24057544]
[1625756947836,0.24057544,32778.0,32777.0,0.24057544]
[1625756947988,0.0046,32779.0,32777.0,0.24057544]
[1625756948811,0.0046,32779.0,32778.0,0.24057544]
[1625756948961,0.03,32780.0,32778.0,0.24057544]
[1625756949412,0.03,32780.0,32778.0,0.95065865]
[1625756951439,0.03,32780.0,32779.0,0.710365]
[1625756951595,0.0046,32783.0,32779.0,0.710365]
[1625756951739,0.0046,32783.0,32778.0,0.24057544]
[1625756952039,0.72217348,32783.0,32778.0,0.95109791]
[1625756952266,0.0046,32783.0,32779.0,0.70990048]
[1625756952417,0.0046,32783.0,32779.0,1.01498048]
[1625756952867,0.0046,32783.0,32782.0,0.24057544]
[1625756953469,0.95815001,32784.0,32782.0,0.24057544]
[1625756954069,0.71828975,32783.0,32782.0,0.24057544]
[1625756954669,0.72288975,32783.0,32782.0,0.24057544]
[1625756955121,0.43744577,32783.0,32782.0,0.24057544]
[1625756955289,0.0046,32783.0,32782.0,2.19277118]
[1625756955796,0.0046,32783.0,32782.0,3.61347907]
[1625756955947,0.24057544,32784.0,32782.0,3.61347907]
[1625756956399,0.24057544,32784.0,32783.0,2.66373482]
[1625756960904,0.24057544,32784.0,32783.0,4.5001976]
[1625756961054,0.24057544,32784.0,32783.0,2.90431026]
[1625756962106,0.24057544,32784.0,32783.0,4.50309577]
[1625756962332,0.24057544,32784.0,32783.0,5.57064461]
[1625756963234,0.0046,32789.0,32783.0,5.57064461]
[1625756963535,0.0046,32789.0,32788.0,2.31671502]
[1625756963682,0.0046,32789.0,32788.0,2.59879502]
[1625756963984,1.07972076,32790.0,32788.0,2.59879502]
[1625756964134,1.07973914,32789.0,32788.0,2.59879502]
[1625756964810,1.32031458,32789.0,32788.0,1.59190853]
[1625756965335,1.32031458,32789.0,32788.0,2.84263961]
[1625756965788,1.32031458,32789.0,32788.0,1.59190853]
[1625756965936,1.32031458,32789.0,32788.0,2.84370904]
[1625756966387,1.32031458,32789.0,32788.0,1.59190853]
[1625756966537,2.61028668,32789.0,32788.0,1.30982853]
[1625756966687,4.05022919,32789.0,32788.0,0.24057544]
[1625756968416,4.02022919,32789.0,32788.0,0.24057544]
[1625756968714,4.05022919,32789.0,32788.0,7.544e-05]
[1625756968865,4.29080463,32789.0,32787.0,1.07400801]
[1625756969015,3.78059516,32788.0,32786.0,1.07459387]
[1625756969166,0.0901,32787.0,32786.0,1.07459387]
[1625756969465,2.43058441,32787.0,32786.0,1.07459387]
[1625756970068,3.87092333,32787.0,32785.0,1.07517989]
[1625756970223,2.34061916,32786.0,32785.0,1.253783]
[1625756970516,2.34061916,32786.0,32785.0,1.07470684]
[1625756970817,2.34061916,32786.0,32785.0,2.32840299]
[1625756970968,2.5811946,32786.0,32785.0,2.32840299]
[1625756971569,1.32087505,32786.0,32785.0,2.32840299]
[1625756973523,1.32547505,32786.0,32785.0,2.32840299]
[1625756973820,1.32547505,32786.0,32785.0,3.75844191]
[1625756974119,0.24517544,32786.0,32785.0,3.75844191]
[1625756975394,0.78530992,32786.0,32785.0,4.52707116]
[1625756975848,0.78070992,32786.0,32785.0,4.52707116]
[1625756979302,0.42072062,32786.0,32785.0,4.52707116]
[1625756979603,0.78064739,32786.0,32785.0,4.52707116]
[1625756980654,0.42071812,32786.0,32785.0,4.52707116]
[1625756980955,0.78064428,32786.0,32785.0,4.52707116]
[1625756985084,0.42071612,32786.0,32785.0,4.52707116]
[1625756985234,0.42071612,32786.0,32785.0,3.45236432]
[1625756985383,0.42071612,32786.0,32785.0,4.52455414]
[1625756987940,0.24057544,32786.0,32785.0,4.52455414]
[1625756988242,0.42068534,32786.0,32785.0,4.52455414]
[1625756988693,0.78054734,32786.0,32785.0,4.52455414]
[1625756990643,0.78054734,32786.0,32785.0,3.09451522]
[1625756990793,0.78054734,32786.0,32785.0,2.86194522]
[1625756991694,0.87194734,32786.0,32785.0,2.86194522]
[1625756991907,1.12314734,32786.0,32785.0,2.86194522]
[1625756991999,1.12314734,32786.0,32785.0,0.96952354]
[1625756992898,2.47160438,32786.0,32784.0,0.24057544]
[1625756993048,0.49177544,32786.0,32784.0,0.24057544]
[1625756993198,0.52177544,32786.0,32784.0,0.24057544]
[1625756993500,0.0046,32785.0,32784.0,0.24057544]
[1625756998305,0.0046,32785.0,32784.0,1.67139659]
[1625756999454,0.0046,32785.0,32784.0,0.24057544]
[1625756999805,4.9777,32785.0,32784.0,0.24057544]
[1625757001239,4.9777,32785.0,32783.0,0.24057544]
[1625757002319,0.0046,32784.0,32783.0,0.24057544]
[1625757003050,0.24517544,32784.0,32783.0,0.24057544]
[1625757003186,1.93767132,32788.0,32786.0,2.05025143]
[1625757003187,0.31703,32788.0,32786.0,2.05025143]
[1625757003337,0.31703,32788.0,32787.0,0.17912977]
[1625757004241,0.31703,32788.0,32786.0,2.05025143]
[1625757004388,0.0924,32787.0,32786.0,2.05025143]
[1625757004537,0.38764,32787.0,32786.0,2.05025143]
[1625757004688,0.39224,32787.0,32786.0,2.05025143]
[1625757010321,0.42224,32787.0,32786.0,2.05025143]
[1625757012123,1.68415529,32787.0,32786.0,2.05025143]
[1625757012802,1.65415529,32787.0,32786.0,2.05025143]
[1625757013102,1.68415529,32787.0,32786.0,2.05025143]
[1625757014079,1.59175529,32787.0,32786.0,2.05025143]
[1625757015054,1.68195529,32787.0,32786.0,2.05025143]
[1625757015204,2.40316417,32787.0,32786.0,2.76203008]
[1625757016405,2.37316417,32787.0,32786.0,2.76203008]
[1625757016855,2.40316417,32787.0,32786.0,2.76203008]
[1625757018208,3.84541316,32787.0,32786.0,2.76203008]
[1625757018432,3.81541316,32787.0,32786.0,2.76203008]
[1625757018883,3.84541316,32787.0,32786.0,2.76203008]
[1625757019559,3.81541316,32787.0,32786.0,2.76203008]
[1625757020534,3.84541316,32787.0,32786.0,2.76203008]
[1625757021061,3.75521316,32787.0,32786.0,2.76203008]
[1625757021510,3.72521316,32787.0,32786.0,2.76203008]
[1625757021814,9.06371316,32787.0,32786.0,2.76203008]
[1625757022111,10.23650067,32787.0,32786.0,3.83233453]
[1625757022411,10.17550067,32787.0,32786.0,3.83233453]
[1625757023388,10.14550067,32787.0,32786.0,3.83233453]
[1625757023686,10.23660067,32787.0,32786.0,3.83233453]
[1625757023989,10.14550067,32787.0,32786.0,3.83233453]
[1625757024214,10.17550067,32787.0,32786.0,3.83233453]
[1625757024965,10.26580067,32787.0,32786.0,3.83233453]
[1625757026243,10.23580067,32787.0,32786.0,3.83233453]
[1625757026843,10.26580067,32787.0,32786.0,3.83233453]
[1625757027445,10.23580067,32787.0,32786.0,3.83233453]
[1625757028419,10.26580067,32787.0,32786.0,3.83233453]
[1625757029171,10.23580067,32787.0,32786.0,3.83233453]
[1625757029471,10.26580067,32787.0,32786.0,3.83233453]
[1625757030597,10.23580067,32787.0,32786.0,3.83233453]
[1625757031125,10.26580067,32787.0,32786.0,3.83233453]
[1625757031875,10.23580067,32787.0,32786.0,3.83233453]
[1625757032249,10.23580067,32787.0,32786.0,2.76203008]
[1625757032398,10.26580067,32787.0,32786.0,3.82346404]
[1625757033299,10.26580067,32787.0,32786.0,2.76203008]
[1625757033974,10.14550067,32787.0,32786.0,2.76203008]
[1625757034501,10.17550067,32787.0,32786.0,2.76203008]
[1625757034801,11.76842288,32787.0,32786.0,2.76203008]
[1625757035104,11.86022288,32787.0,32786.0,2.58039502]
[1625757035251,11.89022288,32787.0,32786.0,2.58039502]
[1625757035553,11.88562288,32787.0,32786.0,2.58039502]
[1625757036454,11.85562288,32787.0,32786.0,2.58039502]
[1625757036755,11.89022288,32787.0,32786.0,2.58039502]
[1625757037356,11.89022288,32787.0,32786.0,2.40368049]
[1625757037583,11.89022288,32787.0,32786.0,2.05025143]
[1625757037733,11.85562288,32787.0,32786.0,2.05025143]
[1625757038259,11.88562288,32787.0,32786.0,2.05025143]
[1625757038860,11.88562288,32787.0,32786.0,2.76032238]
[1625757039008,11.89022288,32787.0,32786.0,2.76032238]
[1625757039311,11.89022288,32787.0,32786.0,2.05025143]
[1625757039460,11.86022288,32787.0,32786.0,2.05025143]
[1625757040286,11.89022288,32787.0,32786.0,2.05025143]
[1625757040436,11.88562288,32787.0,32786.0,2.05025143]
[1625757040587,11.88562288,32787.0,32786.0,2.76013097]
[1625757040735,11.79382288,32787.0,32786.0,3.03059097]
[1625757041491,11.79842288,32787.0,32786.0,3.03059097]
[1625757041865,10.17550067,32787.0,32786.0,4.09248521]
[1625757042465,10.14550067,32787.0,32786.0,4.09248521]
[1625757042765,10.14090067,32787.0,32786.0,4.09248521]
[1625757043893,10.14550067,32787.0,32786.0,4.09248521]
[1625757044194,10.23770067,32787.0,32786.0,4.09248521]
[1625757044344,10.23770067,32787.0,32786.0,3.82202521]
[1625757044510,10.23770067,32787.0,32786.0,3.66842521]
[1625757044672,11.8612017,32787.0,32786.0,1.59855143]
[1625757044795,11.8612017,32787.0,32786.0,1.51015143]
[1625757044946,13.66513657,32787.0,32786.0,1.19045143]
[1625757045095,13.66513657,32787.0,32786.0,1.09565143]
[1625757045245,13.66513657,32787.0,32781.0,0.6524113]
[1625757045395,6.13489842,32782.0,32781.0,0.6524113]
[1625757045696,6.13489842,32782.0,32779.0,1.06400404]
[1625757045996,6.13489842,32782.0,32778.0,1.0635265]
[1625757045997,5.41086477,32780.0,32778.0,1.0635265]
[1625757046146,0.0926,32779.0,32778.0,1.0635265]
[1625757046295,3.88486033,32779.0,32778.0,1.0347265]
[1625757046445,3.88486033,32779.0,32778.0,0.8579265]
[1625757046598,3.88486033,32779.0,32775.0,1.41867205]
[1625757046599,5.50813203,32779.0,32775.0,1.24155114]
[1625757046747,2.70544781,32776.0,32774.0,1.41849571]
[1625757047047,2.70544781,32776.0,32773.0,0.24057544]
[1625757047048,1.26255433,32776.0,32775.0,2.65969088]
[1625757047347,3.18689099,32776.0,32775.0,2.65969088]
[1625757047496,3.19149099,32776.0,32775.0,1.24118908]
[1625757047797,3.19149099,32776.0,32774.0,1.24142603]
[1625757047946,4.1099,32775.0,32774.0,1.24142603]
[1625757048099,5.37206895,32775.0,32773.0,1.65934805]
[1625757048248,5.37206895,32775.0,32774.0,1.24152972]
[1625757048547,5.37206895,32775.0,32774.0,2.66040572]
[1625757048998,5.37666895,32775.0,32774.0,2.66040572]
[1625757049150,1.26676895,32775.0,32774.0,2.66040572]
[1625757049298,1.26676895,32775.0,32774.0,2.87554572]
[1625757049449,0.0046,32775.0,32774.0,2.87554572]
[1625757049899,1.26680578,32775.0,32774.0,2.87554572]
[1625757050048,0.0046,32775.0,32774.0,2.87554572]
[1625757052526,0.0046,32775.0,32774.0,2.66040572]
[1625757057931,0.0046,32775.0,32774.0,1.24152972]
[1625757058529,0.0046,32775.0,32774.0,2.66014867]
[1625757058680,0.0046,32775.0,32774.0,1.24152972]
[1625757058829,0.32564,32775.0,32774.0,1.24152972]
[1625757059659,0.41674,32775.0,32774.0,1.24152972]
[1625757059808,1.67794464,32775.0,32774.0,1.24152972]
[1625757060408,1.67794464,32775.0,32773.0,1.48051716]
[1625757060707,0.41674,32775.0,32774.0,1.2397483]
[1625757060857,1.70775593,32775.0,32773.0,1.47976757]
[1625757061758,1.70775593,32775.0,32773.0,0.24057544]
[1625757064014,1.70775593,32775.0,32771.0,1.41636984]
[1625757064162,1.70775593,32775.0,32768.0,1.83382246]
[1625757064163,1.26081647,32772.0,32770.0,1.24135214]
[1625757064463,1.2608506,32771.0,32769.0,1.24179893]
[1625757064632,1.2608506,32771.0,32769.0,1.10149893]
[1625757064768,1.44105169,32771.0,32765.0,1.66068144]
[1625757064912,1.62116064,32774.0,32765.0,1.66068144]
[1625757064913,1.44006344,32770.0,32765.0,0.24057544]
[1625757065063,1.44006344,32770.0,32763.0,1.42004884]
[1625757065214,1.44007868,32768.0,32762.0,1.66113678]
[1625757065363,4.85022632,32763.0,32762.0,1.42056134]
[1625757065516,4.85022632,32763.0,32760.0,1.42144243]
[1625757065824,0.09017294,32761.0,32760.0,1.42144243]
[1625757065996,0.34723,32761.0,32759.0,1.42031127]
[1625757066286,0.09017512,32760.0,32759.0,1.42031127]
[1625757066447,0.0046,32760.0,32758.0,1.42060043]
[1625757066717,0.0046,32760.0,32757.0,1.42110567]
[1625757067017,0.09007989,32759.0,32756.0,1.41931242]
[1625757067466,0.0046,32760.0,32755.0,1.41957264]
[1625757067467,0.48115088,32757.0,32755.0,1.41957264]
[1625757067918,0.48115088,32757.0,32751.0,0.24057544]
[1625757067919,0.48115088,32757.0,32756.0,1.41895472]
[1625757068816,0.48575088,32757.0,32755.0,1.41771791]
[1625757068968,0.51575088,32757.0,32755.0,1.41771791]
[1625757069416,0.75632632,32757.0,32755.0,1.41771791]
[1625757069869,0.75632632,32757.0,32752.0,1.59493265]
[1625757069870,0.75632632,32757.0,32756.0,1.41748388]
[1625757070017,0.75172632,32757.0,32755.0,1.41757517]
[1625757071143,0.75172632,32757.0,32754.0,1.41707905]
[1625757071443,0.75172632,32757.0,32753.0,1.21878641]
[1625757071593,0.75172632,32757.0,32751.0,0.24057544]
[1625757071594,0.84168076,32757.0,32751.0,0.24057544]
[1625757071893,0.75172632,32757.0,32748.0,1.83633959]
[1625757072044,1.75172632,32757.0,32748.0,1.83633959]
[1625757072197,0.5,32756.0,32755.0,0.08871571]
[1625757072498,0.5,32756.0,32744.0,1.59775981]
[1625757072795,1.0,32755.0,32744.0,1.59775981]
[1625757072946,0.5,32754.0,32744.0,1.59775981]
[1625757073096,1.0,32752.0,32744.0,1.59775981]
[1625757073247,1.0,32752.0,32741.0,1.59493266]
[1625757073396,1.81091,32754.0,32741.0,1.59493266]
[1625757073547,0.72172632,32742.0,32741.0,1.59493266]
[1625757073697,0.93686632,32742.0,32741.0,1.59493266]
[1625757074149,0.93686632,32742.0,32739.0,1.83593313]
[1625757074448,0.96686632,32742.0,32739.0,1.59535769]
[1625757074599,0.96686632,32742.0,32740.0,1.5950478]
[1625757074749,0.0046,32741.0,32739.0,1.59532875]
[1625757075054,0.0046,32741.0,32738.0,1.59386173]
[1625757075952,0.0046,32741.0,32736.0,1.5928521]
[1625757076401,0.0923,32740.0,32736.0,1.5928521]
[1625757076551,0.0923,32740.0,32739.0,1.06174067]
[1625757076701,0.0923,32740.0,32739.0,0.84974067]
[1625757076851,0.0923,32740.0,32739.0,0.81814067]
[1625757077007,0.0923,32740.0,32739.0,0.78654067]
[1625757077151,0.0969,32740.0,32731.0,1.83287316]
[1625757077301,0.0969,32740.0,32730.0,1.59222146]
[1625757077605,0.72172632,32731.0,32729.0,1.5932771]
[1625757077751,0.94633632,32731.0,32729.0,1.5932771]
[1625757077901,4.3715,32730.0,32729.0,1.5932771]
[1625757078051,4.3715,32730.0,32728.0,1.59326548]
[1625757078352,4.3761,32730.0,32729.0,1.59327406]
[1625757078954,4.3761,32730.0,32727.0,1.59111052]
[1625757079253,0.0046,32730.0,32728.0,1.59059124]
[1625757079404,0.0046,32730.0,32729.0,1.59039235]
[1625757080158,0.0046,32730.0,32727.0,1.59139934]
[1625757080456,0.72172632,32731.0,32726.0,1.59173535]
[1625757080906,0.72172632,32731.0,32727.0,1.59212579]
[1625757081207,0.72172632,32731.0,32725.0,1.59128811]
[1625757081506,0.24057544,32726.0,32725.0,1.59128811]
[1625757082106,0.24057544,32726.0,32725.0,2.12220114]
[1625757082709,0.72172632,32731.0,32725.0,2.12220114]
[1625757082856,0.72172632,32731.0,32730.0,0.53128623]
[1625757089090,0.72172632,32731.0,32729.0,0.77005392]
[1625757089467,0.72172632,32731.0,32730.0,0.52953203]
[1625757094352,0.72172632,32731.0,32729.0,0.77114319]
[1625757094507,1.01518632,32731.0,32729.0,0.77114319]
[1625757094991,1.01518632,32731.0,32729.0,0.24057544]
[1625757095163,1.01518632,32731.0,32728.0,0.53044265]
[1625757095311,1.01518632,32731.0,32727.0,0.53034151]
[1625757095420,1.01518632,32731.0,32724.0,1.47803896]
[1625757095421,1.01518632,32731.0,32724.0,0.77142992]
[1625757095573,0.24057544,32725.0,32724.0,0.77142992]
[1625757096455,0.24057544,32725.0,32724.0,0.24057544]
[1625757096755,0.24057544,32725.0,32723.0,0.53097561]
[1625757097656,0.24057544,32724.0,32723.0,0.53097561]
[1625757098107,0.24517544,32724.0,32723.0,0.53097561]
[1625757100296,0.24057544,32724.0,32723.0,0.53097561]
[1625757100889,0.24057544,32724.0,32720.0,0.53061039]
[1625757101638,0.24517544,32724.0,32720.0,0.53061039]
[1625757102087,0.24517544,32724.0,32719.0,0.7716473]
[1625757103137,0.24517544,32724.0,32720.0,0.53157273]
[1625757103441,0.24517544,32724.0,32719.0,0.24057544]
[1625757103442,0.24517544,32724.0,32719.0,0.77212077]
[1625757103737,0.24517544,32724.0,32720.0,0.53187283]
[1625757105087,0.24057544,32724.0,32720.0,0.53187283]
[1625757105686,0.24057544,32721.0,32720.0,0.53187283]
[1625757106064,0.24057544,32721.0,32720.0,1.24114012]
[1625757106364,0.24057544,32721.0,32720.0,0.53187283]
[1625757107113,0.24057544,32721.0,32719.0,1.48173336]
[1625757108016,0.24057544,32721.0,32720.0,0.53191184]
[1625757108466,0.24057544,32721.0,32720.0,1.24102117]
[1625757108992,0.24057544,32721.0,32720.0,0.53191184]
[1625757109676,0.24057544,32721.0,32720.0,1.24074997]
[1625757109967,0.24057544,32725.0,32720.0,1.24074997]
[1625757110123,0.24057544,32726.0,32720.0,2.30436261]
[1625757110313,0.057,32740.0,32720.0,2.30436261]
[1625757110457,1.0072,32741.0,32722.0,1.24049751]
[1625757110570,0.9502,32741.0,32722.0,1.58085751]
[1625757110719,0.9812,32741.0,32722.0,1.58085751]
[1625757110868,0.9812,32741.0,32723.0,0.53158945]
[1625757111018,0.0923,32733.0,32723.0,0.53158945]
[1625757111225,0.091,32740.0,32723.0,1.24045354]
[1625757111391,0.031,32741.0,32723.0,1.24045354]
[1625757111519,0.031,32741.0,32726.0,0.53123661]
[1625757111646,4.6018,32744.0,32729.0,0.53070839]
[1625757111800,0.24057544,32741.0,32740.0,0.24057544]
[1625757111919,0.24057544,32741.0,32740.0,0.57889544]
[1625757114472,7.544e-05,32741.0,32740.0,0.57889544]
[1625757114645,0.24057544,32744.0,32740.0,0.57889544]
[1625757115748,0.24057544,32744.0,32743.0,0.24057544]
[1625757123404,0.95798551,32744.0,32743.0,0.24057544]
[1625757123555,1.49608789,32744.0,32743.0,0.24057544]
[1625757123855,1.50068789,32744.0,32743.0,0.24057544]
[1625757124006,0.78327782,32744.0,32743.0,0.24057544]
[1625757124908,1.50077234,32744.0,32743.0,0.24057544]
[1625757125057,2.60789301,32744.0,32743.0,0.24057544]
[1625757125361,2.36731757,32744.0,32743.0,0.24057544]
[1625757125713,1.25660293,32748.0,32743.0,0.24057544]
[1625757125910,1.25660293,32748.0,32747.0,0.48115088]
[1625757126019,0.53857561,32750.0,32747.0,0.81997088]
[1625757126110,0.71804099,32751.0,32748.0,0.53279234]
[1625757126305,0.53853644,32753.0,32748.0,1.24318213]
[1625757126442,0.53845558,32755.0,32750.0,1.24215233]
[1625757126712,1.25628917,32757.0,32752.0,0.53218258]
[1625757127015,1.07669113,32758.0,32752.0,0.53218258]
[1625757127016,1.25623157,32758.0,32753.0,0.5320153]
[1625757127160,0.53872756,32757.0,32753.0,1.24177608]
[1625757127610,0.54332756,32757.0,32753.0,1.24177608]
[1625757127762,0.0046,32757.0,32756.0,0.48115088]
[1625757127911,0.0046,32757.0,32756.0,4.97538088]
[1625757128738,1.25654804,32758.0,32756.0,4.97538088]
[1625757128886,1.25743554,32757.0,32756.0,4.97538088]
[1625757129187,0.0046,32759.0,32756.0,7.27980772]
[1625757129487,0.0046,32759.0,32758.0,0.53199185]
[1625757129786,0.0046,32759.0,32758.0,0.77256729]
[1625757130104,0.53888643,32761.0,32758.0,0.77256729]
[1625757130236,0.53888643,32761.0,32758.0,0.24057544]
[1625757130237,0.53889358,32760.0,32758.0,0.24057544]
[1625757130539,0.53864405,32761.0,32758.0,0.24057544]
[1625757130839,0.0046,32762.0,32759.0,0.53194575]
[1625757130986,0.54356491,32762.0,32760.0,0.62269338]
[1625757131153,0.54356491,32762.0,32760.0,0.53229338]
[1625757131287,0.54356491,32762.0,32759.0,0.7097245]
[1625757131288,0.53896161,32761.0,32759.0,0.53240401]
[1625757131450,0.62906161,32761.0,32759.0,0.53240401]
[1625757131898,1.34763325,32761.0,32760.0,0.24057544]
[1625757132217,2.42540766,32761.0,32760.0,0.24057544]
[1625757132376,2.42540766,32761.0,32760.0,0.33287544]
[1625757132644,2.42540766,32761.0,32760.0,0.24057544]
[1625757132789,1.34763325,32761.0,32760.0,0.24057544]
[1625757132957,0.62906161,32761.0,32760.0,0.24057544]
[1625757133279,2.42492888,32761.0,32760.0,0.24057544]
[1625757134592,1.34744443,32761.0,32760.0,0.52020544]
[1625757135415,0.62906161,32761.0,32760.0,0.52020544]
[1625757135716,0.62906161,32761.0,32760.0,0.24057544]
[1625757135717,1.34717666,32761.0,32760.0,0.24057544]
[1625757136017,2.42428146,32761.0,32760.0,0.24057544]
[1625757136919,3.68044086,32761.0,32760.0,0.24057544]
[1625757137067,3.92923086,32761.0,32760.0,0.24057544]
[1625757137370,3.83913086,32761.0,32760.0,0.24057544]
[1625757137894,5.27472625,32761.0,32760.0,0.24057544]
[1625757139395,5.27472625,32761.0,32760.0,0.18537544]
[1625757139696,6.88941247,32761.0,32760.0,0.18537544]
[1625757139846,5.51530169,32761.0,32760.0,0.18537544]
[1625757140598,3.89923528,32761.0,32760.0,0.18537544]
[1625757140746,5.51407558,32761.0,32760.0,0.18537544]
[1625757142925,1.51273497,32761.0,32760.0,0.18537544]
[1625757143375,1.51273497,32761.0,32760.0,0.00227544]
[1625757145399,1.46273497,32761.0,32760.0,0.00227544]
[1625757145701,1.22359497,32761.0,32760.0,0.00227544]